Cogmind - Beta 12 @@@ ROGUE MODE // 2023.06.04 @ 22:01:11 Player: Michael Result: Destroyed by S-27 Virus with Autogun Performance ------------- Evolutions (3) 1500 Regions Visited (10) 2000 Robots Destroyed (184) 920 Value Destroyed (5912) 5912 Prototype IDs (8) 160 Alien Tech Used (0) 0 Bonus (1618) 1618 TOTAL SCORE: 12110 Bonus ------- High Alert Combat Kills 722 Follower Combat Kills 348 Entered Garrisons 200 Used RIF Installer 500 Friendly Fire -152 Cogmind --------- Core Integrity 0/700 Matter 300/300 Energy 146/150 System Corruption 20% Temperature Cool (0) Movement Rolling (115) Ox1 Location -7/Factory Parts ------- > --- POWER (1) -------- Micro Nuclear Core > --- PROPULSION (2) --- Armored Huge Wheel > --- UTILITY (8) ------ High-capacity Storage Unit Advanced Weight Redist. System Advanced Visual Processing Unit Improved Melee Analysis Suite Layered Light Armor Plating Relay Coupler [Duelist] (20) Dynamic Insulation System High-powered Tractor Beam > --- WEAPON (2) ------- Ionic Axe Ionic Axe > --- INVENTORY (20) --- Improved Deuterium Engine Medium Treads Medium Treads Wheel Armored Wheel Improved Heat Sink Improved Cooling System High-capacity Matter Pod (200) Structural Scanner Improved Sensor Array Hardened Medium Armor Plating Medium Reactive Plating Relay Coupler [NC] (33) Relay Coupler [Behemoth] (12) Improved Assault Rifle Heavy Assault Cannon Remote Datajack Remote Datajack Peak State ------------ > --- POWER ------------ Micro Nuclear Core > --- PROPULSION ------- Armored Huge Wheel > --- UTILITY ---------- Improved Heat Sink High-capacity Storage Unit Advanced Weight Redist. System Improved Sensor Array Improved Melee Analysis Suite Layered Light Armor Plating Relay Coupler [Duelist] High-powered Tractor Beam > --- WEAPON ----------- Ionic Axe Ionic Axe > --- INVENTORY -------- Improved Deuterium Engine Improved Deuterium Engine Improved Deuterium Engine Medium Treads Medium Treads Wheel Armored Wheel Improved Cooling System High-capacity Matter Pod Structural Scanner Hardened Medium Armor Plating Medium Reactive Plating Relay Coupler [NC] Relay Coupler [Behemoth] Dynamic Insulation System Improved Assault Rifle Heavy Assault Cannon Remote Datajack [Rating: 55] Favorites ----------- Power Cooled Ion Engine Engine Cooled Ion Engine Power Core Micro Nuclear Core Propulsion Armored Wheel Treads Advanced Treads Leg Aluminum Leg Wheel Armored Wheel Utility Improved Targeting Computer Device Structural Scanner Storage High-capacity Storage Unit Processor Improved Targeting Computer Hackware Relay Coupler [Duelist] Protection Medium Reactive Plating Weapon Improved Assault Rifle Energy Gun Pulse Rifle Energy Cannon Beam Cannon Ballistic Gun Improved Assault Rifle Ballistic Cannon Assault Cannon Launcher Missile Launcher Special Weapon Remote Datajack Slashing Weapon Axe Build | -11 -10 -10 -9 -9 -9 -8 -8 -7 -7 -7 ------- Run | Jun Mat Min Mat Min Exi Min Mat Fac Gar Fac Slots Evolved 6 | . . . 2 . . . 2 2 . . Power . | . . . . . . . . . . . Propulsion . | . . . . . . . . . . . Utility 6 | . . . 2 . . . 2 2 . . Weapon . | . . . . . . . . . . . Parts Attached 265 | 4 16 17 40 . 1 6 42 43 3 93 Power 22 | 1 2 . 6 . . 1 7 1 . 4 Engine 18 | 1 2 . 6 . . 1 5 1 . 2 Core 4 | . . . . . . . 2 . . 2 Reactor . | . . . . . . . . . . . Propulsion 43 | 2 4 2 11 . . . 9 3 . 12 Treads 16 | . . 1 5 . . . 4 . . 6 Leg 6 | 2 4 . . . . . . . . . Wheel 21 | . . 1 6 . . . 5 3 . 6 Hover . | . . . . . . . . . . . Flight . | . . . . . . . . . . . Utility 98 | 1 2 1 9 . 1 1 10 26 2 45 Device 64 | . 1 1 1 . . . 7 22 1 31 Storage 4 | 1 1 . 1 . 1 . . . . . Processor 11 | . . . 6 . . 1 . 1 . 3 Hackware 6 | . . . . . . . . . 1 5 Protection 13 | . . . 1 . . . 3 3 . 6 Artifact . | . . . . . . . . . . . Weapon 102 | . 8 14 14 . . 4 16 13 1 32 Energy Gun 6 | . 2 . 1 . . . 3 . . . Energy Cannon 7 | . . 3 4 . . . . . . . Ballistic Gun 33 | . 6 7 7 . . 2 4 1 . 6 Ballistic Cannon 18 | . . . . . . . 2 7 . 9 Launcher 17 | . . 4 2 . . 2 4 . . 5 Special Weapon 6 | . . . . . . . . . 1 5 Impact Weapon . | . . . . . . . . . . . Slashing Weapon 15 | . . . . . . . 3 5 . 7 Piercing Weapon . | . . . . . . . . . . . Special Melee Weapon . | . . . . . . . . . . . Unidentified Prototypes 1 | . . . 1 . . . . . . . Parts Lost 36 | . . 3 4 . . 1 11 3 . 14 Power 6 | . . . 1 . . 1 2 . . 2 Propulsion 9 | . . 2 1 . . . 3 1 . 2 Utility 12 | . . 1 . . . . 3 2 . 6 Weapon 9 | . . . 2 . . . 3 . . 4 Highest Loss Streak 8 | . . 3 3 . . 1 5 2 . 8 To Critical Strikes . | . . . . . . . . . . . Average Slot Usage (%) 96 | . 94 95 99 100 100 100 98 97 92 93 Engine 8 | . 13 14 10 11 11 11 6 7 7 5 Treads 6 | . . 3 11 11 11 11 8 4 . 5 Leg 3 | . 28 20 . . . . . . . . Wheel 7 | . . 3 10 11 11 11 9 7 7 6 Device 13 | . 11 10 . . . . 18 26 15 16 Storage 9 | . 14 14 11 11 11 11 9 7 7 7 Processor 18 | . . . 32 22 22 29 25 21 23 13 Hackware 4 | . . . . . . . . . 1 16 Protection 3 | . . . . 11 11 3 . 4 12 4 Energy Gun 1 | . 2 . 2 . . . 3 . . . Ballistic Gun 9 | . 23 23 14 22 22 21 10 1 1 . Ballistic Cannon 2 | . . . . . . . 2 6 . 4 Special Weapon 1 | . . . . . . . . . 5 2 Slashing Weapon 2 | . . . . . . . 1 6 7 4 Naked Turns . | . . . . . . . . . . . Heaviest Build 89 | 10 20 21 37 37 57 57 62 89 83 81 Greatest Support 65 | 20 20 20 23 12 12 12 24 37 37 65 Greatest Overweight (x) 7 | . . 1 3 3 4 4 5 7 2 6 Average Overweight (x) 2 | . . . 2 3 3 4 3 4 2 2 Largest Inventory Capacity 20 | 8 10 10 15 15 20 20 20 20 20 20 Average Capacity 17 | 6 8 10 12 15 17 20 20 20 20 20 Most Carried 20 | 5 8 10 15 14 18 18 20 20 20 20 Average Carried 15 | 3 7 9 12 14 15 17 17 18 19 18 Final Capacity 20 | 8 10 10 15 15 20 20 20 20 20 20 Final Carried 20 | 5 8 9 14 14 18 17 14 20 20 19 Class Distribution -------------------- 60% | Mutant 18% | Bothacker-Mutant 12% | Scavenger-Mutant 8% | Commander-Mutant Dominant Class ---------------- Scavenger-Mutant | -10/Materials Scavenger-Mutant | -10/Mines Mutant | -9/Materials Mutant | -9/Mines Mutant | -9/Exiles Mutant | -8/Mines Mutant | -8/Materials Mutant | -7/Factory Commander-Mutant | -7/Garrison Bothacker-Mutant | -7/Factory Resources | -11 -10 -10 -9 -9 -9 -8 -8 -7 -7 -7 ----------- Run | Jun Mat Min Mat Min Exi Min Mat Fac Gar Fac Matter Collected 5694 | 220 282 409 711 . . 185 1090 734 116 1947 Remotely 2179 | . . . . . . . . 415 . 1764 Salvage Created 5730 | . 368 437 1495 . . 240 1195 426 111 1458 Parts 316 | . 28 21 112 . . 24 63 11 4 53 Haulers Intercepted 12 | . 2 . 4 . . . 5 . . 1 Recyclers Shooed 8 | . . 2 3 . . 2 . . . 1 Parts Field Recycled . | . . . . . . . . . . . Retrieved Matter . | . . . . . . . . . . . Parts Self-Destructed . | . . . . . . . . . . . Prevented . | . . . . . . . . . . . Kills | -11 -10 -10 -9 -9 -9 -8 -8 -7 -7 -7 ------- Run | Jun Mat Min Mat Min Exi Min Mat Fac Gar Fac Combat Hostiles Destroyed 136 | . 10 11 35 . . 13 24 9 . 34 Melee 5 | . . . . . . . 1 . . 4 Guns 66 | . 10 6 25 . . 6 15 2 . 2 Cannons 26 | . . 1 6 . . . . 7 . 12 AOE 37 | . . 4 3 . . 7 7 . . 16 Classes Destroyed 17 | . 4 2 3 . . 1 3 2 . 2 Worker 8 | . . . 3 . . . 2 1 . 2 Builder 6 | . . . 1 . . . 1 1 . 3 Tunneler 1 | . . . . . . . 1 . . . Hauler 12 | . 2 . 4 . . . 5 . . 1 Recycler 13 | . . 3 1 . . 1 3 2 . 3 Mechanic 3 | . . . . . . . 1 . . 2 Watcher 8 | . 1 . 4 . . . . . . 3 Swarmer 51 | . 6 6 19 . . 12 6 . . 2 Cutter 3 | . . . . . . . 3 . . . Grunt 50 | . 4 3 6 . . . 11 4 . 22 Brawler 3 | . . . . . . . . . . 3 Duelist 1 | . . . . . . . . 1 . . Protector 1 | . . . . . . . . . . 1 Sentry 17 | . . . 10 . . . 4 3 . . Hunter 2 | . . . . . . 1 . . . 1 Programmer 5 | . . . . . . . . 1 . 4 Assembled 3 | . . 2 . . . . . . . 1 Best Kill Streak 9 | . 3 3 4 . . 4 9 6 . 7 Combat Bots Only 6 | . 3 3 4 . . 4 6 2 . 5 Max Kills in Single Turn 7 | . 2 2 2 . . 3 3 1 . 7 Gunslinging 1 | . 1 . 1 . . . 1 . . . Exploded 5 | . . 2 2 . . 3 2 . . 5 Melee 1 | . . . . . . . 1 . . 1 Uniques/NPCs Destroyed . | . . . . . . . . . . . Combat | -11 -10 -10 -9 -9 -9 -8 -8 -7 -7 -7 -------- Run | Jun Mat Min Mat Min Exi Min Mat Fac Gar Fac Damage Taken 7658 | . 226 518 980 . . 477 1757 807 103 2790 Core 1333 | . 29 77 160 . . 86 276 173 . 532 Absorbed by Shields 174 | . . . . . . . . 174 . . Redirected to Shielding 70 | . . . . . . . . . . 70 Regen/Repaired (Parts) 166 | . . . 89 . . . 77 . . . Core Remaining (%) 61 | 100 . 57 . . . 38 49 . . . Volleys Fired 476 | . 45 58 98 . . 24 75 32 24 120 Largest 2 | . 2 2 2 . . 2 2 2 1 2 Hottest 126 | . 80 80 120 . . 46 126 88 5 92 Shots Fired 802 | . 90 102 193 . . 45 140 62 24 146 Gun 491 | . 90 67 148 . . 42 122 5 . 17 Cannon 227 | . . 20 42 . . . 10 57 . 98 Launcher 43 | . . 15 3 . . 3 8 . . 14 Special 41 | . . . . . . . . . 24 17 Kinetic 585 | . 86 67 108 . . 42 105 62 . 115 Thermal 129 | . . 20 82 . . . 27 . . . Explosive 43 | . . 15 3 . . 3 8 . . 14 Electromagnetic 4 | . 4 . . . . . . . . . Robot Hit Streak 62 | . 18 6 36 . . 11 62 35 24 22 Robot Miss Streak 7 | . 2 3 7 . . 2 2 1 1 2 Penetration Max 1 | . . . . . . . . . . 1 Secondary Targets 5 | . 1 . 1 . . 1 2 . . . Max Gunslinging Chain 1 | . 1 . 1 . . 1 1 . . . Shots Hit Robots 577 | . 64 51 125 . . 29 121 61 24 102 Core Hits 279 | . 22 23 59 . . 16 66 22 2 69 Critical Kills 3 | . . . 2 . . 1 . . . . Critical Parts Destroyed 1 | . . . . . . . 1 . . . Critical Strikes 14 | . . . 6 . . 1 3 1 . 3 Burn 6 | . . . 4 . . . 2 . . . Meltdown 1 | . . . 1 . . . . . . . Destroy 3 | . . . 1 . . 1 1 . . . Blast 4 | . . . . . . . . 1 . 3 Melee Attacks 101 | . . . . . . . 7 32 7 55 Impact . | . . . . . . . . . . . Slashing 101 | . . . . . . . 7 32 7 55 Piercing . | . . . . . . . . . . . Sneak Attacks 14 | . . . . . . . 3 5 . 6 Combat Hostiles . | . . . . . . . . . . . Follow-up Attacks . | . . . . . . . . . . . Damage Inflicted 16140 | . 559 918 2137 . . 790 3215 1676 186 6659 Guns 4546 | . 559 300 1462 . . 353 1589 71 . 212 Cannons 3918 | . . 265 454 . . . 196 1178 . 1825 Explosions 5758 | . . 348 221 . . 437 1180 . . 3572 Melee 1913 | . . . . . . . 250 427 186 1050 Ramming 5 | . . 5 . . . . . . . . Kinetic 7039 | . 527 300 1127 . . 353 1446 1249 . 2037 Thermal 2741 | . . 265 789 . . . 339 . . 1348 Explosive 4410 | . . 348 221 . . 437 1180 . . 2224 Electromagnetic 32 | . 32 . . . . . . . . . Impact . | . . . . . . . . . . . Slashing 1913 | . . . . . . . 250 427 186 1050 Piercing . | . . . . . . . . . . . Highest Corruption 21 | . . 4 . . . . 7 4 . 21 Average Corruption 7 | . . 3 . . . . 4 2 . 13 Corruption Purged 9 | . . . . . . . . 4 . 5 Corruption Blocked 6 | . . . . . . . . 6 . . Effects 101 | . . 6 . . . . 38 13 . 44 Message Errors 21 | . . 2 . . . . 5 4 . 10 Matter Fused 23 | . . 1 . . . . 8 4 . 10 Heat Flow Errors 12 | . . 1 . . . . 7 . . 4 Energy Discharges 15 | . . 1 . . . . 7 . . 7 Parts Rejected 4 | . . . . . . . . 1 . 3 Parts Fused 1 | . . 1 . . . . . . . . Data Loss (minor) 11 | . . . . . . . 4 2 . 5 Data Loss (major) 4 | . . . . . . . 1 . . 3 Misfires 3 | . . . . . . . 3 . . . Alerts 2 | . . . . . . . . 1 . 1 Weapon Failures 5 | . . . . . . . 3 1 . 1 Overload Shots . | . . . . . . . . . . . Overflow Damage 1021 | . . 5 2 . . 13 100 150 . 751 Projectiles 223 | . . . 2 . . . . 59 . 162 Explosions 373 | . . 5 . . . 13 49 . . 306 Melee 425 | . . . . . . . 51 91 . 283 Knockbacks 26 | . . . . . . . 2 8 . 16 Impact . | . . . . . . . . . . . Kinetic 24 | . . . . . . . 2 8 . 14 Secondary 2 | . . . . . . . . . . 2 Self-Inflicted Damage 542 | . . 86 16 . . 43 132 . . 265 Shots 13 | . . 3 1 . . 2 3 . . 4 Rammed . | . . . . . . . . . . . Targets Rammed . | . . . . . . . . . . . Kicked . | . . . . . . . . . . . Crushed . | . . . . . . . . . . . Highest Temperature 336 | . 36 268 336 . . . 245 . . 250 Average Temperature 72 | . 14 76 72 . . . 78 . . 71 Received Heat Transfer 2286 | . 78 66 288 . . . 720 282 . 852 Effects 5 | . . 1 3 . . . 1 . . . Energy Bleed 1 | . . 1 . . . . . . . . Interference 4 | . . . 3 . . . 1 . . . Siege Activations . | . . . . . . . . . . . Robots Corrupted . | . . . . . . . . . . . Combat Hostiles . | . . . . . . . . . . . Parts Fried . | . . . . . . . . . . . Impact Corruptions . | . . . . . . . . . . . Robots Melted 2 | . . . 1 . . . 1 . . . Combat Hostiles 2 | . . . 1 . . . 1 . . . Parts Melted 14 | . . . 10 . . . 3 . . 1 Heat Transferred 4452 | . . 555 2109 . . . 888 . . 900 Parts Sabotaged . | . . . . . . . . . . . Parts Stolen . | . . . . . . . . . . . Parts Stripped . | . . . . . . . . . . . Power Chain Reactions . | . . . . . . . . . . . Missiles Intercepted . | . . . . . . . . . . . Alert | -11 -10 -10 -9 -9 -9 -8 -8 -7 -7 -7 ------- Run | Jun Mat Min Mat Min Exi Min Mat Fac Gar Fac Peak Influence 1326 | . 236 213 834 300 . 234 392 176 699 1326 Initial 366 | . . 8 17 300 . . 53 120 44 366 Average 358 | . 109 76 480 300 . 179 265 92 282 629 Maximum Alert Level 4 | . 1 1 3 1 . 1 1 . 2 4 Low Security (%) 38 | 100 74 85 25 . . 40 23 100 56 . Level 1 26 | . 25 14 7 100 . 59 76 . 27 24 Level 2 21 | . . . 41 . . . . . 16 45 Level 3 8 | . . . 25 . . . . . . 13 Level 4 4 | . . . . . . . . . . 16 Level 5 . | . . . . . . . . . . . High Security . | . . . . . . . . . . . Max Security . | . . . . . . . . . . . Squads Dispatched 31 | . 2 . 2 . . . 4 2 . 21 Investigation 2 | . 1 . . . . . . . . 1 Extermination 5 | . . . . . . . . 1 . 4 Reinforcement 11 | . 1 . 2 . . . 1 1 . 6 Assault 4 | . . . . . . . . . . 4 Garrison 9 | . . . . . . . 3 . . 6 Intercept . | . . . . . . . . . . . Searches Triggered . | . . . . . . . . . . . Construction Impeded 3 | . . . 1 . . . . . . 2 Haulers Reinforced . | . . . . . . . . . . . Active Scanning Responses . | . . . . . . . . . . . Cargo Convoy Interrupts 1 | . . . . . . . . 1 . . Stealth | -11 -10 -10 -9 -9 -9 -8 -8 -7 -7 -7 --------- Run | Jun Mat Min Mat Min Exi Min Mat Fac Gar Fac Distress Signals 9 | . . . 6 . . . 2 . . 1 Communications Jammed . | . . . . . . . . . . . Distress Signals . | . . . . . . . . . . . Times Spotted 226 | . 17 12 50 . . 13 43 11 . 80 Peak Tracking Total 7 | . 3 3 7 . . 4 5 4 . 7 Tactical Retreats 7 | . . 1 2 . . . 1 . . 3 Traps | -11 -10 -10 -9 -9 -9 -8 -8 -7 -7 -7 ------- Run | Jun Mat Min Mat Min Exi Min Mat Fac Gar Fac Traps Triggered 8 | . 2 . . . . . 2 1 1 2 Indirectly . | . . . . . . . . . . . Trap Hack Attempts . | . . . . . . . . . . . Triggered . | . . . . . . . . . . . Disarmed . | . . . . . . . . . . . Reprogrammed . | . . . . . . . . . . . Reused . | . . . . . . . . . . . Traps Extracted . | . . . . . . . . . . . Installed . | . . . . . . . . . . . Triggered 1 | . . . . . . . . 1 . . Exploded 3 | . . . . . . . 1 2 . . Machines | -11 -10 -10 -9 -9 -9 -8 -8 -7 -7 -7 ---------- Run | Jun Mat Min Mat Min Exi Min Mat Fac Gar Fac Machines Disabled 33 | . . . . . . 1 . . 5 27 Max in Single Turn 20 | . . . . . . 1 . . 1 20 Garrison Access 2 | . . . . . . . . . . 2 Garrison Relay 5 | . . . . . . . . . 5 . Machines Repaired . | . . . . . . . . . . . Machines Sabotaged . | . . . . . . . . . . . Overloaded Fab Kills . | . . . . . . . . . . . Hacking | -11 -10 -10 -9 -9 -9 -8 -8 -7 -7 -7 --------- Run | Jun Mat Min Mat Min Exi Min Mat Fac Gar Fac Machines Accessed 47 | . 5 . 10 . 1 . 6 6 . 19 Terminals 26 | . 4 . 7 . . . 3 3 . 9 Fabricators 3 | . . . . . . . . . . 3 Repair Stations 5 | . . . 2 . . . 1 1 . 1 Recycling Units 5 | . 1 . . . . . 1 . . 3 Scanalyzers 4 | . . . 1 . . . 1 1 . 1 Garrison Access 3 | . . . . . . . . 1 . 2 Total Hacks 129 | . 10 . 35 . 1 . 31 14 . 38 Successful 64 | . 5 . 21 . 1 . 13 7 . 17 Failed 65 | . 5 . 14 . . . 18 7 . 21 Catastrophic 8 | . . . 3 . . . 1 1 . 3 Database Lockouts . | . . . . . . . . . . . Manual 20 | . . . 4 . . . 11 3 . 2 Terminals 72 | . 9 . 23 . . . 12 5 . 23 Fabricators 5 | . . . . . . . . . . 5 Repair Stations 19 | . . . 6 . . . 8 3 . 2 Recycling Units 9 | . 1 . . . . . 5 . . 3 Scanalyzers 20 | . . . 6 . . . 6 5 . 3 Garrison Access 3 | . . . . . . . . 1 . 2 Terminal Hacks 27 | . 4 . 10 . 1 . 2 2 . 8 Record 1 | . . . . . 1 . . . . . Prototype ID Bank 3 | . . . 3 . . . . . . . Level Access Points 1 | . . . . . . . 1 . . . Branch Access Points 2 | . 1 . . . . . . . . 1 Emergency Access Points 3 | . . . 2 . . . . . . 1 Terminal Index 1 | . . . . . . . . . . 1 Unreport Threat 1 | . 1 . . . . . . . . . Locate Traps 2 | . . . 1 . . . . . . 1 Patrol Status 1 | . . . 1 . . . . . . . Hauler Manifests 4 | . 1 . 1 . . . 1 . . 1 Registered Components 3 | . . . 1 . . . . 1 . 1 Zone Layout 5 | . 1 . 1 . . . . 1 . 2 Fabricator Hacks 3 | . . . . . . . . . . 3 Network Status 2 | . . . . . . . . . . 2 Load Schematic 1 | . . . . . . . . . . 1 Repair Station Hacks 9 | . . . 4 . . . 3 1 . 1 Scan Component 6 | . . . 2 . . . 2 1 . 1 Repair 3 | . . . 2 . . . 1 . . . Recycling Unit Hacks 4 | . 1 . . . . . 2 . . 1 Report Inventory 1 | . . . . . . . . . . 1 Retrieve Components 3 | . 1 . . . . . 2 . . . Scanalyzer 14 | . . . 6 . . . 5 2 . 1 Insert Component 7 | . . . 3 . . . 2 1 . 1 Analyze 7 | . . . 3 . . . 3 1 . . Garrison Access Hacks 3 | . . . . . . . . 1 . 2 Unlock Access 1 | . . . . . . . . 1 . . Seal Access 2 | . . . . . . . . . . 2 Unauthorized Hacks 4 | . . . 1 . . . 1 1 . 1 Terminals 4 | . . . 1 . . . 1 1 . 1 Botnet 4 | . . . 1 . . . 1 1 . 1 Fabricators . | . . . . . . . . . . . Repair Stations . | . . . . . . . . . . . Recycling Units . | . . . . . . . . . . . Scanalyzers . | . . . . . . . . . . . Garrison Access . | . . . . . . . . . . . Data Cores Recovered . | . . . . . . . . . . . Used . | . . . . . . . . . . . Hacking Detections 38 | . 3 . 10 . . . 6 5 . 14 Full Trace Events . | . . . . . . . . . . . Feedback Events . | . . . . . . . . . . . Feedback Blocked . | . . . . . . . . . . . Robot Schematics Acquired . | . . . . . . . . . . . Robots Built . | . . . . . . . . . . . Authchips . | . . . . . . . . . . . Time . | . . . . . . . . . . . Total Robot Build Rating . | . . . . . . . . . . . Part Schematics Acquired 5 | . . . 3 . . . 1 1 . . Parts Built . | . . . . . . . . . . . Authchips . | . . . . . . . . . . . Time . | . . . . . . . . . . . Total Part Build Rating . | . . . . . . . . . . . Parts Repaired 3 | . . . 2 . . . 1 . . . Time 103 | . . . 52 . . . 51 . . . Parts Recycled . | . . . . . . . . . . . Recycled Matter . | . . . . . . . . . . . Retrieved Matter . | . . . . . . . . . . . Retrieved Components 22 | . 10 . . . . . 12 . . . Parts Scanalyzed 6 | . . . 3 . . . 1 1 . 1 Part Schematics Acquired 5 | . . . 3 . . . 1 1 . . Parts Damaged . | . . . . . . . . . . . Bothacking | -11 -10 -10 -9 -9 -9 -8 -8 -7 -7 -7 ------------ Run | Jun Mat Min Mat Min Exi Min Mat Fac Gar Fac Used RIF Installer 1 | . . . . . . . . . 1 . Robots Hacked 8 | . . . . . . . . . . 8 Non-combat 3 | . . . . . . . . . . 3 Combat 5 | . . . . . . . . . . 5 Robot Hacks Applied 8 | . . . . . . . . . . 8 map_route 3 | . . . . . . . . . . 3 go_dormant 1 | . . . . . . . . . . 1 formatsys_high 4 | . . . . . . . . . . 4 Relay Couplers Released 21 | . . . . . . . . . 21 . Machine Destruction 21 | . . . . . . . . . 21 . Attached 5 | . . . . . . . . . 1 4 Fabnet Peak Effective % . | . . . . . . . . . . . Robots Rewired 14 | . . . . . . . . . 14 . Allies Hacked . | . . . . . . . . . . . Hacks Repelled . | . . . . . . . . . . . Allies | -11 -10 -10 -9 -9 -9 -8 -8 -7 -7 -7 -------- Run | Jun Mat Min Mat Min Exi Min Mat Fac Gar Fac Total Allies 18 | . . . . . . . . . 14 4 Largest Group 13 | . . . . . . . . . 13 13 Highest-Rated Group 311 | . . . . . . . . . 311 311 Highest-Rated Ally 32 | . . . . . . . . . 32 32 Total Orders 4 | . . . . . . . . . . 4 STAY 2 | . . . . . . . . . . 2 FOLLOW 2 | . . . . . . . . . . 2 Ally Attacks 70 | . . . . . . . . . . 70 Total Damage 1919 | . . . . . . . . . . 1919 Kills 18 | . . . . . . . . . . 18 Allies Corrupted . | . . . . . . . . . . . Allies Melted . | . . . . . . . . . . . Intel | -11 -10 -10 -9 -9 -9 -8 -8 -7 -7 -7 ------- Run | Jun Mat Min Mat Min Exi Min Mat Fac Gar Fac Robot Analysis Total . | . . . . . . . . . . . Derelict Logs Recovered 2 | . . 2 . . . . . . . . Drone Launches . | . . . . . . . . . . . Drone Recoveries . | . . . . . . . . . . . Exploration | -11 -10 -10 -9 -9 -9 -8 -8 -7 -7 -7 ------------- Run | Jun Mat Min Mat Min Exi Min Mat Fac Gar Fac Turns Passed 12401 | 55 795 936 2068 18 354 519 1649 1438 1103 3466 Spaces Moved 7222 | 39 508 657 1187 14 247 294 788 764 749 1975 Core 7 | 7 . . . . . . . . . . Treads 166 | . . . 43 . . . . . . 123 Legs 1021 | 32 508 481 . . . . . . . . Wheels 6028 | . . 176 1144 14 247 294 788 764 749 1852 Hover . | . . . . . . . . . . . Flight . | . . . . . . . . . . . Fastest Speed 50 | 50 120 95 95 135 135 150 120 115 130 115 Average Speed 135 | 107 120 113 122 135 141 150 149 152 130 143 Slowest Speed 240 | 120 120 190 240 135 150 150 165 185 130 240 Overloaded Moves . | . . . . . . . . . . . Propulsion Burnouts . | . . . . . . . . . . . Robots Hopped . | . . . . . . . . . . . Cave-ins Triggered . | . . . . . . . . . . . Exploration Rate (%) 57 | 3 89 92 98 4 55 70 56 22 87 57 Regions Visited 10 Branch Regions 4 Pre-discovered Areas 1 | . . 1 . . . . . . . . Known Exits Taken 3 | . 1 . . . . . 1 1 . . Unknown Exits Taken 6 | 1 . 1 1 1 1 1 . . . . Scrap Searched 3 | . . 2 . . . 1 . . . . Spaces Dug 145 | . . 5 16 . . 36 9 24 . 55 Terrain Destroyed 419 | . . 85 33 . . 36 48 25 . 192 Melee 55 | . . . . . . . 2 23 . 30 Projectile 32 | . . . . . . . . 2 . 30 AOE 332 | . . 85 33 . . 36 46 . . 132 Terrain Rammed 1 | . . 1 . . . . . . . . Walls Destroyed . | . . . . . . . . . . . Machines Disabled . | . . . . . . . . . . . Actions | -11 -10 -10 -9 -9 -9 -8 -8 -7 -7 -7 --------- Run | Jun Mat Min Mat Min Exi Min Mat Fac Gar Fac Total 8850 | 50 617 752 1618 13 252 324 1101 906 857 2360 Wait 522 | 3 33 7 235 . . 1 163 4 18 58 Move 7213 | 38 507 656 1186 13 246 293 787 764 748 1975 Hop . | . . . . . . . . . . . Pick Up 98 | 5 4 5 22 . 4 . 14 12 9 23 Fast Attach 59 | 4 7 2 12 . . . 5 10 . 19 Attach 50 | . 1 2 6 . . 1 16 4 . 20 Detach 41 | . 2 1 8 . . . 6 7 . 17 Swap 156 | . 8 13 22 . 1 5 21 29 3 54 Drop 99 | . 10 7 29 . 1 . 7 12 10 23 Fire 476 | . 45 58 98 . . 24 75 32 24 120 Melee 97 | . . . . . . . 7 32 7 51 Ram 1 | . . 1 . . . . . . . . Kick . | . . . . . . . . . . . Crush . | . . . . . . . . . . . Escape Stasis . | . . . . . . . . . . . Rewire 38 | . . . . . . . . . 38 . Trap . | . . . . . . . . . . . Miscellaneous . | . . . . . . . . . . . Route ------- -11/Junkyard -10/Materials (discovered 5 exits: *Mat x3 / *Min x2) -10/Mines (discovered 2 exits: *Mat x2) -9/Materials (discovered 5 exits: *Mat x3 / [*Min x2]) -9/Mines -9/Exiles -8/Mines -8/Materials (discovered 3 exits: *Fac x3) -7/Factory (discovered 4 exits: *Sto / *Low x2 / Gar) -7/Garrison (discovered 3 exits: *Fac x3) -7/Factory (discovered 6 exits: [*Fac x3] / *Sto / *Low x2) History --------- Turn | Location | Event 2 | -11/Junkyard | Met Revision 17 5 | -11/Junkyard | Discovered new exit (range 15) 56 | -11/Junkyard | Entered Materials 67 | -10/Materials | Identified exit to Mines 283 | -10/Materials | Discovered new exit (range 10) 497 | -10/Materials | Build established: Scavenger-Mutant 543 | -10/Materials | Discovered new exit (range 13) 765 | -10/Materials | Discovered new exit (range 7) 851 | -10/Materials | Entered Mines 894 | -10/Mines | Received a Rocket Launcher from a helpful Derelict 1030 | -10/Mines | Discovered new exit (range 5) 1197 | -10/Mines | Discovered new exit (range 9) 1388 | -10/Mines | Learned location of Storage (-7) 1519 | -10/Mines | Excavation squad dispatched 1519 | -10/Mines | A large section of the Mines collapsed 1566 | -10/Mines | Lost 3 parts (2n1u) 1787 | -10/Mines | Entered Materials 1787 | -9/Materials | Evolved 2 slots: Utility x2 1822 | -9/Materials | Build established: Mutant 1870 | -9/Materials | Repaired Ion Engine 1897 | -9/Materials | Repaired Grenade Launcher 2170 | -9/Materials | Discovered new exit (range 18) 2522 | -9/Materials | Lost 3 parts (1p2w) 2693 | -9/Materials | Discovered new exit (range 17) 2853 | -9/Materials | Discovered new exit (range 11) 3338 | -9/Materials | Discovered new exit (range 9) 3543 | -9/Materials | Discovered new exit (range 10) 3855 | -9/Materials | Entered Mines 3868 | -9/Mines | Deemed a non-threat by the Exiles lab entrance 3868 | -9/Mines | Discovered new exit (range 5) 3873 | -9/Mines | Entered Exiles 3873 | -9/Exiles | Found Exiles lab abandoned 4211 | -9/Exiles | Discovered new exit (range 14) 4227 | -9/Exiles | Entered Mines 4413 | -8/Mines | Core integrity fell below 50% 4639 | -8/Mines | Discovered new exit (range 4) 4746 | -8/Mines | Entered Materials 4746 | -8/Materials | Evolved 2 slots: Utility x2 5211 | -8/Materials | Repaired Imp. Assault Rifle 5369 | -8/Materials | Discovered new exit (range 3) 5504 | -8/Materials | Identified exit to Factory 5677 | -8/Materials | Lost 5 parts (1p2n2u) 6046 | -8/Materials | Garrison activated, responded to threat 6050 | -8/Materials | Core integrity fell below 50% 6079 | -8/Materials | Lost 4 parts (1u3w) 6395 | -8/Materials | Entered Factory 6395 | -7/Factory | Evolved 2 slots: Utility x2 6396 | -7/Factory | Identified exit to Storage 6754 | -7/Factory | Discovered new exit (range 15) 7271 | -7/Factory | Cargo convoy interrupted 7417 | -7/Factory | Discovered new exit (range 6) 7833 | -7/Factory | Identified exit to Garrison 7833 | -7/Factory | Entered Garrison 7833 | -7/Garrison | Discovered recently destroyed garrison 7901 | -7/Garrison | Garrison Relay disabled 8069 | -7/Garrison | Discovered new exit (range 10) 8243 | -7/Garrison | Discovered new exit (range 9) 8398 | -7/Garrison | Build established: Commander-Mutant 8499 | -7/Garrison | Installed Relay Interface Framework 8587 | -7/Garrison | Discovered new exit (range 11) 8627 | -7/Garrison | Garrison Relay disabled 8788 | -7/Garrison | Garrison Relay disabled 8854 | -7/Garrison | Garrison Relay disabled 8879 | -7/Garrison | Garrison Relay disabled 8936 | -7/Garrison | Entered Factory 8936 | -7/Factory | Accompanied by 13 allies 9311 | -7/Factory | Discovered new exit (range 16) 9510 | -7/Factory | Discovered new exit (range 16) 9513 | -7/Factory | Build established: Bothacker-Mutant 9691 | -7/Factory | Assembled infested ambush trap array 10515 | -7/Factory | Discovered new exit (range 4) 10536 | -7/Factory | First assault squad dispatched 11125 | -7/Factory | Garrison activated, responded to threat 11167 | -7/Factory | Core integrity fell below 50% 11185 | -7/Factory | Discovered new exit (range 15) 11484 | -7/Factory | System corruption reached 10% 11518 | -7/Factory | Garrison activated, responded to threat 11524 | -7/Factory | Lost 8 parts (1p5u2w) 11566 | -7/Factory | Core integrity fell below 20% 11789 | -7/Factory | Build established: Mutant 11994 | -7/Factory | Identified exit to Lower Caves 12402 | -7/Factory | Destroyed by S-27 Virus with Autogun Last Messages --------------- 12257_ Acquired Lyr. Light Armor Plating. 12264_ Acquired 26 matter. 12265_ Acquired 10 matter. 12272_ Destroyed Gravmag System. 12272_ P-60 Hacker destroyed. 12279_ Acquired Remote Datajack. 12286_ System corrupted: Substantial component data lost. 12289_ K-01 Serf collects debris. 12297_ Acquired Adv. Visual Processing Unit. 12301_ K-01 Serf collects debris. 12303_ System corrupted: Matter fused (-8). 12304_ Acquired 18 matter. 12306_ K-01 Serf collects debris. 12315_ K-01 Serf cleans the Subcomponent Replicator. 12330_ I#>PT5WCHCJ2LEIRPQ7CMMYWMUJ9AQT&S 12346_ System corrupted: Energy discharge (-58). 12361_ System corrupted: Heat flow error (+211). 12386_ System corrupted: IFF burst signal emitted. 12401_ System corrupted: Matter fused (-8). 12402_ Acquired 8 matter. Map ----- +----------------------------------------------------+ | ?????????????????????????????????????????????????? | | ?????????????????????????????????????????????????? | | ?????????????????????????????????????????????????? | | ?????????????????????????????????????????????????? | | ?????????????????????????????????????????????????? | | ???????????????????????????????????? ???????????? | | ??????????????????? # # ???????????? | | ?????????????????? ############## ?????????##? | | ????????????????? k ???????? [? | | ????????????????? ????????? ? | | ?????????????????? ?? +?? ? # | | ??????????????????? ##?? # | | ???????????????????? ? ##?"""" # | | ???#+#########??????## s"" """" ##?"""" # | | ???# #??????## "" """" ## """" # | | ???# """ """ #??????##![ """ """" ## """" # | | ???# """ """ #??????##![ """ """" ## """" # | | ???# """ """ #??????## """ """" ## """" + | | ???# #??????## " " """" ## """" # | | ???# #??????## "G" ## # | | ???# #??????## " ## # | | ???# #########| #####+### | | ???######+############ | | ????## #### s######### | | ????## + s######### | | ????## # u@ ###????## | | ??? # + % ###????## | | ?? # ######+#######??############+### | | # # = ] #??######## | | # * # #???????### | | > +%! # """" """" ##???????## | | % #! # """" """" !##???????## | | %% % # # """" """" ##???????## | | % # # """" """" ##???????## """ """ | | # # ##???????## """ """ | | +############+##### """" """" ##???????## """ """ | | ! ###### ##### """" """" #????????########## | | + ##??# """" "?"" #????????########## | | #########??# """" "??" #?????????????????? | | """ #########??# ?? #?????????????????? | | """ ##?????????########??####?????????????????? | | """ ##??????????????###???????????????????????? | | = ##????????????????????????????????????????? | | = """ ##????????????????????????????????????????? | | = """ ##????????????????????????????????????????? | | """ ##????????????????????????????????????????? | | ##????????????????????????????????????????? | | ########?????????????????????????????????????????? | | | | | +----------------------------------------------------+ Best States ------------- Heat Dissipation 80 Energy Generation 16 Energy Capacity 290 Matter Stores 300 Matter Capacity 300 Sight Range 20 Robot Scan Range 15 Terrain Scan Density 10 Additional Mass Support 9 EM Shielding 2 Armor Coverage 450 Resistance: KI 30 Propulsion Shielding 33 Evasion (%) 55 Targeting Accuracy 18 Melee Accuracy 6 Recoil Reduction 4 Salvage Targeting 2 Offensive Hacking 10 Relay Coupler Types 3 Relay Coupler Value 66 Item Schematics ----------------- Lgt. Nuclear Core | -9/Materials | Scanalyzed Structural Scanner | -9/Materials | Scanalyzed Rocket Launcher | -9/Materials | Scanalyzed Imp. Assault Rifle | -8/Materials | Scanalyzed Imp. Cooling System | -7/Factory | Scanalyzed Robot Schematics ------------------ None Fabricated ------------ Nothing Alien Tech Used ----------------- None Achievements -------------- None Challenges ------------ None Game ------ Seed RefineryDisruptorNukerbomber Manual? 0 Play Time 04:29:48 Cumulative 772.6 hours Start 2023.05.31 @ 21:40:59 End 2023.06.04 @ 22:01:11 Sessions 10 Manual Loads 0 Difficulty Rogue Special Mode None Game No. 228 Rogue 192 Adventurer 36 Explorer 0 Win Type - Total 16 Types 16/0/0/0/0/0/0/0/0 Lore% 56 Gallery% 63 Achievement% 50 Wizard Run 0 Options --------- ASCII 0 Keyboard 1 Movement Vi Keybinds 0 Fullscreen 1 Font 18/Terminus Map View 76x50 Tactical HUD 1 Map Filters NONE Filters NONE Steam 0 RUN: b2fb5eb6-d567-42c7-a4dc-0ded661fe3c4